bitfinex/quotes_SOLUSD_20250507
["timestamp","ask_amount","ask_price","bid_price","bid_amount"]
[1746608118311,14.09780287,148.01,147.97,37.75124612]
[1746608119112,137.7,148.02,147.97,37.75124612]
[1746608119113,137.7,148.02,147.98,14.09780287]
[1746608119320,151.79780287,148.02,147.98,14.09780287]
[1746608119488,14.09780287,148.01,147.97,37.75124612]
[1746608119914,151.79780287,148.02,148.0,26.0]
[1746608120213,14.09780287,148.01,148.0,26.0]
[1746608121321,14.09780287,148.01,147.99,6.75681718]
[1746608124039,151.79780287,148.02,147.98,6.75766995]
[1746608124221,151.79780287,148.02,147.98,20.85547282]
[1746608124416,137.7,148.02,147.98,23.65184483]
[1746608124717,137.7,148.02,148.01,14.09780287]
[1746608125313,137.7,148.02,148.0,14.09780287]
[1746608126000,137.7,148.02,148.01,46.85410311]
[1746608126518,176.05930287,148.07,148.01,63.74485373]
[1746608126699,153.74,148.07,148.03,14.09780287]
[1746608126899,167.83780287,148.07,148.03,14.09780287]
[1746608128115,14.09780287,148.05,148.03,6.75538742]
[1746608128321,14.09780287,148.05,148.02,6.7556776]
[1746608129419,14.09780287,148.03,147.96,16.89572491]
[1746608129625,137.7,148.04,147.97,6.75812664]
[1746608131837,151.79780287,148.03,148.0,26.0]
[1746608133623,151.79780287,148.03,147.99,6.75701172]
[1746608133809,151.79780287,148.03,147.99,32.75701172]
[1746608134531,137.7,148.03,148.0,14.09780287]
[1746608134709,137.7,148.03,148.01,14.09780287]
[1746608136319,158.45090287,148.06,148.02,6.7558438]
[1746608136619,14.09780287,148.03,148.0,6.75656022]
[1746608136804,14.09780287,148.02,147.99,26.0]
[1746608137198,14.09780287,148.02,147.99,6.75705437]
[1746608138530,151.79780287,148.01,147.97,14.09780287]
[1746608138704,151.79780287,148.01,147.97,6.75795237]
[1746608138705,14.09780287,148.0,147.97,6.75795237]
[1746608139528,14.09780287,148.0,147.96,32.75836399]
[1746608139704,14.09780287,148.0,147.96,46.85616686]
[1746608140733,137.7,148.01,147.96,46.85616686]
[1746608141032,14.09780287,148.0,147.96,46.85616686]
[1746608141920,137.7,148.01,147.95,6.75886699]
[1746608141921,19.15864083,147.99,147.95,6.75886699]
[1746608142126,19.15864083,147.99,147.95,20.85666986]
[1746608142437,14.09780287,147.98,147.95,6.75886699]
[1746608142912,5.06083796,147.99,147.95,20.85666986]
[1746608142913,5.06083796,147.97,147.95,20.85666986]
[1746608143407,5.06083796,147.97,147.91,16.90195293]
[1746608143647,5.06083796,147.97,147.93,14.09780287]
[1746608143816,144.45740917,147.99,147.92,20.8582139]
[1746608143817,19.15864083,147.96,147.92,20.8582139]
[1746608144011,19.15864083,147.96,147.92,46.8582139]
[1746608144425,5.06083796,147.95,147.92,46.8582139]
[1746608146134,5.06083796,147.94,147.92,46.8582139]
[1746608146713,5.06083796,147.94,147.93,14.09780287]
[1746608151433,5.06083796,147.94,147.93,20.8577569]
[1746608151636,5.06083796,147.94,147.92,14.09780287]
[1746608151819,5.06083796,147.94,147.92,26.0]
[1746608152343,5.06083796,147.94,147.88,6.76223965]
[1746608152629,156.85864083,147.94,147.9,14.09780287]
[1746608152935,142.76083796,147.94,147.91,14.09780287]
[1746608153536,5.06083796,147.93,147.91,14.09780287]
[1746608153831,5.06083796,147.93,147.91,20.85866157]
[1746608155139,5.06083796,147.92,147.91,20.85866157]
[1746608157229,5.06083796,147.92,147.9,46.85893447]
[1746608157435,5.06083796,147.92,147.9,32.7611316]
[1746608157646,5.06083796,147.92,147.9,46.85893447]
[1746608158239,5.06083796,147.91,147.9,46.85893447]
[1746608159638,5.06083796,147.91,147.9,32.7611316]
[1746608159945,5.06083796,147.91,147.9,20.85893447]
[1746608160134,5.06083796,147.91,147.9,6.7611316]
[1746608165451,5.06083796,147.91,147.9,20.85893447]
[1746608165743,151.79780287,147.94,147.9,20.85893447]
[1746608167047,14.09780287,147.93,147.89,6.7617824]
[1746608167340,5.03625349,147.93,147.9,14.09780287]
[1746608168347,5.03625349,147.92,147.9,14.09780287]
[1746608168842,5.03625349,147.92,147.91,14.09780287]
[1746608169151,5.03625349,147.92,147.91,62.51937383]
[1746608169445,153.74,148.02,147.94,26.0]
[1746608169647,153.74,148.02,148.0,14.09780287]
[1746608169824,153.74,148.02,147.99,14.09780287]
[1746608170023,153.74,148.02,147.98,14.09780287]
[1746608170229,167.83780287,148.02,147.98,14.09780287]
[1746608170424,14.09780287,147.99,147.95,14.09780287]
[1746608170640,14.09780287,147.98,147.94,40.09780287]
[1746608171017,14.09780287,147.98,147.94,46.8568768]
[1746608173248,14.09780287,147.98,147.94,32.75907393]
[1746608173440,14.09780287,147.98,147.94,46.8568768]
[1746608175456,137.7,147.99,147.95,14.09780287]
[1746608175751,137.7,147.99,147.97,14.09780287]
[1746608176143,137.7,147.99,147.96,14.09780287]
[1746608176338,151.79780287,147.99,147.96,14.09780287]
[1746608176537,151.79780287,147.99,147.95,14.09780287]
[1746608176741,14.09780287,147.98,147.94,46.8568768]
[1746608177253,14.09780287,147.98,147.94,32.75907393]
[1746608177563,14.09780287,147.97,147.93,20.85754924]
[1746608177747,14.09780287,147.96,147.93,6.75974637]
[1746608178225,6.75783095,147.98,147.93,20.85754924]
[1746608178431,14.09780287,147.98,147.94,14.09780287]
[1746608178641,151.79780287,147.99,147.95,14.09780287]
[1746608179154,137.7,147.99,147.96,14.09780287]
[1746608179344,137.7,147.99,147.97,20.85551145]
[1746608179656,6.0,148.0,147.97,20.85551145]
[1746608181057,6.0,148.0,147.99,14.09780287]
[1746608181438,6.0,148.0,147.99,20.85501619]
[1746608181855,6.0,148.0,147.99,6.75721332]
[1746608182861,6.0,148.0,147.99,20.85501619]
[1746608195064,6.0,148.0,147.99,39.50466505]
[1746608195265,14.09780287,148.09,148.03,26.0]
[1746608195460,14.09780287,148.09,148.05,14.09780287]
[1746608197473,14.09780287,148.09,148.06,6.75401864]
[1746608197771,14.09780287,148.08,148.06,6.75401864]
[1746608198273,14.09780287,148.09,148.06,6.75401864]
[1746608199382,137.7,148.1,148.06,6.75401864]
[1746608199684,14.09780287,148.09,148.06,6.75401864]
[1746608200181,14.09780287,148.09,148.06,32.75401864]
[1746608200880,14.09780287,148.09,148.06,46.85182151]
[1746608201197,14.09780287,148.09,148.06,32.75401864]
[1746608202882,137.7,148.1,148.06,32.75401864]
[1746608203182,14.09780287,148.09,148.06,32.75401864]
[1746608204373,14.09780287,148.09,148.06,46.85182151]
[1746608204877,137.7,148.1,148.06,46.85182151]
[1746608205092,151.79780287,148.1,148.07,14.09780287]
[1746608205270,151.79780287,148.1,148.06,46.85182151]
[1746608205470,137.7,148.1,148.06,46.85182151]
[1746608205782,151.79780287,148.1,148.06,46.85182151]
[1746608209288,14.09780287,148.08,148.01,23.64601446]
[1746608209498,137.7,148.1,148.03,14.09780287]
[1746608209499,14.09780287,148.07,148.03,14.09780287]
[1746608209872,14.09780287,148.07,148.04,26.0]
[1746608211105,14.09780287,148.07,148.06,26.0]
[1746608211588,14.09780287,148.08,148.06,26.0]
[1746608211895,14.09780287,148.09,148.06,32.75400161]
[1746608215707,11.11121387,148.09,148.06,32.75400161]
[1746608220898,11.11121387,148.09,148.06,46.85180448]
[1746608221102,11.11121387,148.09,148.06,32.75400161]
[1746608221887,14.09780287,148.08,148.06,32.75400161]
[1746608224320,137.7,148.1,148.06,32.75400161]
[1746608224697,137.7,148.1,148.06,46.85180448]
[1746608224883,151.79780287,148.1,148.06,46.85180448]
[1746608226410,137.7,148.1,148.06,46.85180448]
[1746608226626,151.79780287,148.1,148.06,46.85180448]
[1746608227385,14.09780287,148.09,148.06,32.75400161]
[1746608229919,14.09780287,148.09,148.06,26.0]
[1746608230087,144.45256989,148.1,148.06,26.0]
[1746608230088,14.09780287,148.08,148.06,26.0]
[1746608230410,14.09780287,148.08,148.02,16.88942132]
[1746608230591,14.09780287,148.08,148.03,40.09780287]
[1746608230790,14.09780287,148.08,148.03,14.09780287]
[1746608231202,14.09780287,148.08,148.03,40.09780287]
[1746608231819,14.09780287,148.08,148.03,46.85319029]
[1746608232201,14.09780287,148.08,148.04,14.09780287]
[1746608232808,144.45238153,148.1,148.05,14.09780287]
[1746608233094,137.7,148.09,148.06,14.09780287]
[1746608234520,137.7,148.09,148.06,20.85151349]
[1746608237423,137.7,148.09,148.06,6.75371062]
[1746608237724,151.79780287,148.09,148.06,6.75371062]
[1746608239721,137.7,148.09,148.06,6.75371062]
[1746608240022,137.7,148.09,148.06,20.85151349]
[1746608240724,151.79780287,148.09,148.06,6.75371062]
[1746608241517,137.7,148.09,148.06,20.85151349]
[1746608243422,137.7,148.09,148.05,14.09780287]
[1746608244015,137.7,148.09,148.08,14.09780287]
[1746608244515,137.7,148.09,148.07,14.09780287]
[1746608245523,137.7,148.09,148.08,20.85090929]
[1746608246598,21.86530287,148.14,148.08,20.85090929]
[1746608246892,14.09780287,148.13,148.09,14.09780287]
[1746608247724,7.7675,148.14,148.07,14.09780287]
[1746608247725,14.09780287,148.11,148.07,14.09780287]
[1746608247910,14.09780287,148.11,148.07,20.85136537]
[1746608248219,14.09780287,148.09,148.06,26.0]
[1746608248405,14.09780287,148.1,148.06,14.09780287]
[1746608249607,14.09780287,148.1,148.06,20.85162157]
[1746608253232,151.79780287,148.1,148.06,20.85162157]
[1746608259736,146.70078629,148.1,148.06,15.75460499]
[1746608260933,146.70078629,148.1,148.07,9.00078629]
[1746608262522,146.70078629,148.1,148.06,15.75460499]
[1746608267347,137.7,148.1,148.07,9.00078629]
[1746608267643,146.70078629,148.1,148.06,15.75460499]
[1746608269345,146.70078629,148.1,148.06,6.7538187]
[1746608269527,146.70078629,148.1,148.06,15.75460499]
[1746608274739,9.00078629,148.08,148.05,26.0]
[1746608274936,9.00078629,148.07,148.05,26.0]
[1746608275144,9.00078629,148.07,148.03,6.75515996]
[1746608275353,9.00078629,148.06,148.03,15.75594625]
[1746608279459,9.00078629,148.06,148.01,26.0]
[1746608279460,15.75490322,148.06,148.01,26.0]
[1746608279634,9.00078629,148.05,148.01,35.00078629]
[1746608280347,9.00078629,148.05,148.01,32.75610143]
[1746608280551,9.00078629,148.04,148.01,26.0]
[1746608280935,9.00078629,148.05,148.01,35.00078629]
[1746608281658,15.75536444,148.05,148.01,26.0]
[1746608281962,15.75536444,148.05,148.01,35.00078629]
[1746608282144,9.00078629,148.04,148.0,15.75734418]
[1746608282846,9.00078629,148.04,147.99,41.75787991]
[1746608282847,9.00078629,148.03,147.99,41.75787991]
[1746608283858,9.00078629,148.03,147.99,15.75787991]
[1746608284152,144.45516163,148.04,147.99,41.75787991]
[1746608284454,144.45516163,148.04,148.01,9.00078629]
[1746608284455,137.7,148.04,148.01,9.00078629]
[1746608288653,146.70078629,148.04,148.0,15.75738456]
[1746608288955,9.00078629,148.03,147.99,41.75778851]
[1746608289149,9.00078629,148.03,147.99,32.75700222]
[1746608289349,9.00078629,148.03,147.99,41.75778851]
[1746608290053,153.45578922,148.04,148.0,15.75746622]
[1746608290249,146.70078629,148.04,148.0,15.75746622]
[1746608290757,146.70078629,148.04,148.01,9.00078629]
[1746608292666,137.7,148.04,148.01,9.00078629]
[1746608292958,137.7,148.04,148.0,6.75667993]
[1746608293133,137.7,148.04,148.01,9.00078629]
[1746608294265,137.7,148.04,148.01,15.75708248]
[1746608296764,137.7,148.04,148.01,9.00078629]
[1746608297262,137.7,148.04,148.01,15.7570217]
[1746608298363,137.7,148.04,148.01,9.00078629]
[1746608300473,146.70078629,148.04,148.0,6.75658608]
[1746608300647,146.70078629,148.04,148.0,15.75737237]
[1746608301069,137.7,148.04,148.01,9.00078629]
[1746608303068,137.7,148.04,148.01,15.7569661]
[1746608306276,146.70078629,148.04,148.01,9.00078629]
[1746608306449,153.45585539,148.04,148.0,15.75735993]
[1746608306949,9.00078629,148.03,148.0,15.75735993]
[1746608307473,9.00078629,148.02,147.99,32.75702356]
[1746608308374,9.00078629,148.02,147.98,15.75823917]
[1746608308572,9.00078629,148.01,147.97,6.75803674]
[1746608308799,9.00078629,148.0,147.93,23.65969929]
[1746608308952,9.00078629,148.0,147.96,35.00078629]
[1746608309570,9.00078629,148.0,147.96,32.75829464]
[1746608309772,9.00078629,148.0,147.96,41.75908093]
[1746608310283,144.45644654,148.01,147.96,41.75908093]
[1746608310494,146.70078629,148.01,147.97,9.00078629]
[1746608311192,153.4571008,148.01,147.97,9.00078629]
[1746608312495,146.70078629,148.0,147.96,9.00078629]
[1746608312705,9.00078629,147.99,147.95,15.75965013]
[1746608312870,9.00078629,147.99,147.95,6.75886384]
[1746608313074,9.00078629,147.99,147.95,9.00078629]
[1746608314899,15.75804177,147.99,147.95,9.00078629]
[1746608316315,137.7,147.98,147.95,15.75973072]
[1746608317811,137.7,147.97,147.93,26.0]
[1746608318018,146.70078629,147.97,147.92,6.76041103]
[1746608318305,146.70078629,147.97,147.93,9.00078629]
[1746608318470,137.7,147.97,147.94,9.00078629]
[1746608322299,137.7,147.96,147.94,9.00078629]
[1746608323015,137.7,147.96,147.95,9.00078629]
[1746608323533,137.7,147.96,147.94,15.76026418]
[1746608323725,137.7,147.96,147.94,6.75947789]
[1746608325110,137.7,147.96,147.92,23.66120011]
[1746608325312,137.7,147.96,147.93,9.00078629]
[1746608329026,146.70078629,147.96,147.92,9.00078629]
[1746608329205,146.70078629,147.96,147.92,15.76096886]
[1746608329532,9.00078629,147.94,147.88,1.6263]
[1746608329829,9.00078629,147.94,147.9,9.00078629]
[1746608330508,137.7,147.95,147.91,9.00078629]
[1746608330716,137.7,147.95,147.94,9.00078629]
[1746608332630,137.7,147.95,147.94,15.76028338]
[1746608337633,153.68,147.98,147.94,15.76028338]
[1746608337835,153.68,147.98,147.96,9.00078629]
[1746608339215,153.68,147.98,147.95,15.75953565]
[1746608340238,137.7,147.98,147.95,15.75953565]
[1746608342447,137.7,147.98,147.97,9.00078629]
[1746608343641,162.66078629,148.01,147.97,9.00078629]
[1746608343847,137.7,148.0,147.97,9.00078629]
[1746608345221,137.7,148.0,147.97,15.75856037]
[1746608346542,137.7,148.0,147.99,9.00078629]
[1746608347942,137.7,148.0,147.98,9.00078629]
[1746608348145,137.7,148.0,147.97,9.00078629]
[1746608348851,137.7,148.0,147.98,9.00078629]
[1746608350268,137.7,148.0,147.98,15.75840937]
[1746608353876,137.7,148.0,147.97,15.75874624]
[1746608356874,137.7,148.0,147.95,23.65552914]
[1746608357074,137.7,148.0,147.97,9.00078629]
[1746608358177,137.7,148.0,147.95,23.65552914]
[1746608358380,137.7,148.0,147.97,6.75784467]
[1746608358550,146.70078629,148.0,147.97,6.75784467]
[1746608360081,137.7,148.0,147.97,6.75784467]
[1746608360877,137.7,148.0,147.97,9.00078629]
[1746608365988,137.7,148.0,147.97,15.75885898]
[1746608381593,137.7,148.0,147.98,9.00078629]
[1746608381793,153.64,148.03,147.99,9.00078629]
[1746608381972,153.64,148.03,148.0,9.00078629]
[1746608383909,153.64,148.03,148.0,15.75745734]
[1746608384085,137.7,148.03,148.0,15.75745734]
[1746608384397,137.7,148.03,148.0,15.12745734]
[1746608387899,137.7,148.03,147.98,6.75766995]
[1746608388089,146.70078629,148.03,147.99,9.00078629]
[1746608389107,146.70078629,148.03,148.0,9.00078629]
[1746608392405,146.70078629,148.03,147.97,26.0]
[1746608392406,9.00078629,148.02,147.97,26.0]
[1746608392585,9.00078629,148.01,147.97,35.00078629]
[1746608393911,9.00078629,148.01,147.97,41.75870017]
[1746608394504,9.00078629,148.02,147.98,9.00078629]
[1746608394690,146.70078629,148.03,147.99,9.00078629]
[1746608395113,137.7,148.03,148.0,9.00078629]
[1746608396924,137.7,148.03,147.99,15.75756083]
[1746608398925,146.70078629,148.03,147.99,15.75756083]
[1746608400110,137.7,148.03,147.99,15.75756083]
[1746608400328,137.7,148.03,148.01,9.00078629]
[1746608400834,146.70078629,148.06,148.02,9.00078629]
[1746608401029,137.7,148.06,148.02,15.75635741]
[1746608401609,137.7,148.06,148.03,9.00078629]
[1746608403138,137.7,148.06,148.03,15.75616048]
[1746608403930,146.70078629,148.06,148.03,6.75537419]
[1746608404840,15.94,148.07,148.03,15.75616048]
[1746608405040,154.91648629,148.1,148.05,9.00078629]
[1746608405220,137.7,148.09,148.05,9.00078629]
[1746608405920,137.7,148.09,148.07,9.00078629]
[1746608407249,137.7,148.09,148.06,15.75450089]
[1746608410146,137.7,148.09,148.07,9.00078629]
[1746608411153,137.7,148.09,148.06,9.00078629]
[1746608411360,137.7,148.09,148.07,9.00078629]
[1746608412023,137.7,148.09,148.04,23.64225883]
[1746608415123,9.00005092,148.12,148.07,26.0]
[1746608415550,9.00005092,148.11,148.07,26.0]
[1746608417249,9.00005092,148.11,148.08,6.75310642]
[1746608417434,9.00005092,148.11,148.07,26.0]
[1746608417435,9.00005092,148.1,148.07,32.75341411]
[1746608417943,9.00005092,148.11,148.07,32.75341411]
[1746608418134,168.16105198,148.14,148.07,32.75341411]
[1746608418333,9.00005092,148.13,148.07,32.75341411]
[1746608419253,168.16105198,148.14,148.07,32.75341411]
[1746608419430,9.00005092,148.13,148.07,32.75341411]
[1746608419952,9.00005092,148.12,148.07,32.75341411]
[1746608421553,9.00005092,148.13,148.07,32.75341411]
[1746608421731,15.75095824,148.13,148.07,32.75341411]
[1746608423728,9.00005092,148.12,148.07,32.75341411]
[1746608426153,6.75090732,148.13,148.07,32.75341411]
[1746608426354,15.75095824,148.13,148.07,32.75341411]
[1746608426532,9.00005092,148.12,148.07,32.75341411]
[1746608427052,9.00005092,148.13,148.07,32.75341411]
[1746608428240,15.75087853,148.13,148.07,32.75341411]
[1746608428541,9.00005092,148.12,148.07,32.75341411]
[1746608428861,15.75178949,148.11,148.06,6.75379165]
[1746608429029,9.00005092,148.1,148.07,26.0]
[1746608429355,15.75178949,148.11,148.07,26.0]
[1746608432550,15.75178949,148.11,148.07,32.75347174]
[1746608437934,6.75173857,148.11,148.07,32.75347174]
[1746608439761,15.75154374,148.12,148.07,32.75347174]
[1746608445059,15.75193043,148.11,148.07,32.75347174]
[1746608448364,6.75128274,148.12,148.07,32.75347174]
[1746608448539,9.00005092,148.11,148.07,32.75347174]
[1746608449762,15.75133366,148.12,148.07,32.75347174]
[1746608454087,15.75133366,148.12,148.07,26.0]
[1746608455300,15.75133366,148.12,148.07,32.7534935]
[1746608457403,146.09675864,148.13,148.07,32.7534935]
[1746608457691,144.45085864,148.13,148.07,32.7534935]
[1746608457994,5.06460686,148.12,148.07,32.7534935]
[1746608459691,5.06460686,148.11,148.07,32.7534935]
[1746608460365,14.06465778,148.1,148.06,32.75361777]
[1746608460572,9.00005092,148.09,148.03,6.75538742]
[1746608460873,9.00005092,148.08,148.06,26.0]
[1746608461280,9.00005092,148.08,148.03,6.75538742]
[1746608461799,5.06460686,148.07,148.03,32.75538742]
[1746608462498,5.06460686,148.06,148.03,32.75538742]
[1746608465196,5.06647036,148.04,148.03,32.75538742]
[1746608474609,5.06647036,148.04,148.03,26.0]
[1746608477018,5.06647036,148.04,148.03,32.75538742]
[1746608481637,155.00066621,148.11,148.03,49.64385597]
[1746608481808,160.06223532,148.11,148.03,49.64385597]
[1746608482129,32.1721,148.13,148.07,26.0]
[1746608482130,6.1721,148.13,148.07,26.0]
[1746608482304,5.05419736,148.1,148.08,6.75310642]
[1746608483035,5.05419736,148.09,148.08,6.75310642]
[1746608487716,5.05419736,148.09,148.08,20.81018432]
[1746608487902,5.05419736,148.09,148.07,46.81046593]
[1746608488110,19.11127526,148.09,148.06,6.75381726]
[1746608488525,5.05419736,148.09,148.06,20.81089516]
[1746608489024,5.05419736,148.08,148.06,20.81089516]
[1746608489947,5.05419736,148.07,148.06,20.81089516]
[1746608490725,5.05419736,148.07,148.06,6.75381726]
[1746608491034,5.05419736,148.07,148.05,46.81132932]
[1746608491240,5.05419736,148.07,148.05,32.75425142]
[1746608491440,5.05419736,148.07,148.05,46.81132932]
[1746608491916,5.05419736,148.06,148.05,46.81132932]
[1746608493245,158.1610779,148.11,148.05,63.69751641]
[1746608493420,158.1610779,148.11,148.07,14.0570779]
[1746608494542,5.0526798,148.1,148.07,14.0570779]
[1746608495741,5.0526798,148.09,148.08,6.75310642]
[1746608501558,19.1097577,148.09,148.06,6.75401864]
[1746608501926,14.0570779,148.08,148.06,6.75401864]
[1746608502231,5.0526798,148.07,148.06,6.75401864]
[1746608503560,19.1097577,148.07,148.05,32.75426005]
[1746608504353,5.0526798,148.07,148.05,32.75426005]
[1746608505657,5.0526798,148.06,148.05,32.75426005]
[1746608506467,5.0526798,148.06,148.05,46.81133795]
[1746608507950,5.0526798,148.06,148.05,32.75426005]
[1746608510961,5.0526798,148.06,148.05,46.81133795]
[1746608517766,5.0526798,148.06,148.05,41.75546019]
[1746608524196,5.0526798,148.06,148.05,32.75426005]
[1746608528185,5.0526798,148.06,148.05,41.75546019]
[1746608531075,5.0526798,148.06,148.05,60.40510905]
[1746608531273,5.0526798,148.06,148.05,72.01530961]
[1746608532384,10.54290014,148.14,148.08,26.0]
[1746608532588,9.00120014,148.13,148.09,9.00120014]
[1746608533284,6.75084683,148.13,148.08,26.0]
[1746608533495,9.00120014,148.11,148.08,26.0]
[1746608534693,9.00120014,148.12,148.08,35.00120014]
[1746608534896,9.00120014,148.12,148.08,41.75410606]
[1746608535508,9.00120014,148.11,148.08,32.75290592]
[1746608535878,9.00120014,148.12,148.08,41.75410606]
[1746608536891,137.7,148.13,148.08,41.75410606]
[1746608537199,137.7,148.13,148.09,9.00120014]
[1746608538195,137.7,148.13,148.1,6.75219446]
[1746608539801,146.70120014,148.13,148.1,6.75219446]
[1746608541212,137.7,148.13,148.1,6.75219446]
[1746608541383,9.00120014,148.13,148.1,6.75219446]
[1746608542506,6.2345,148.15,148.11,9.00120014]
[1746608542685,137.7,148.16,148.12,9.00120014]
[1746608543010,9.00120014,148.15,148.11,35.00120014]
[1746608543187,137.7,148.16,148.11,35.00120014]
[1746608543387,9.00120014,148.15,148.11,26.0]
[1746608543616,9.00120014,148.14,148.12,6.75128274]
[1746608543923,137.7,148.16,148.11,6.75158832]
[1746608544094,9.00120014,148.13,148.12,26.0]
[1746608545211,9.00120014,148.13,148.1,26.0]
[1746608545428,9.00120014,148.11,148.1,26.0]
[1746608545629,9.00120014,148.11,148.09,6.75255057]
[1746608546117,9.00120014,148.11,148.08,6.75310642]
[1746608546323,9.00120014,148.11,148.1,26.0]
[1746608547809,14.05965611,148.11,148.08,6.75310642]
[1746608549635,14.05965611,148.12,148.08,20.81276253]
[1746608550407,6.2584,148.14,148.08,20.81276253]
[1746608550723,14.05965611,148.12,148.08,20.81276253]
[1746608553822,14.05965611,148.11,148.08,6.75310642]
[1746608560937,14.05965611,148.12,148.08,6.75310642]
[1746608563837,14.05965611,148.11,148.05,6.75447483]
[1746608564133,14.05965611,148.1,148.06,14.05965611]
[1746608564435,14.05965611,148.11,148.07,14.05965611]
[1746608566240,14.05965611,148.11,148.05,42.88618709]
[1746608566541,14.05965611,148.11,148.07,14.05965611]
[1746608568843,14.05965611,148.11,148.08,6.75310642]
[1746608569737,8.99937638,148.11,148.07,8.99937638]
[1746608571342,146.11183408,148.13,148.07,8.99937638]
[1746608571516,8.99937638,148.11,148.07,8.99937638]
[1746608575350,8.99937638,148.11,148.06,6.75401864]
[1746608575556,8.99937638,148.11,148.07,8.99937638]
[1746608578758,8.99937638,148.11,148.08,6.75310642]
[1746608580962,8.99937638,148.11,148.07,15.75272132]
[1746608591776,8.99937638,148.11,148.06,6.75401864]
[1746608591972,8.99937638,148.11,148.06,15.75339502]
[1746608593667,146.111881,148.13,148.07,8.99937638]
[1746608593968,8.99937638,148.11,148.08,6.75310642]
[1746608594462,5.06811882,148.1,148.08,6.75310642]
[1746608595463,5.06811882,148.09,148.08,15.7524828]
[1746608596465,5.06811882,148.09,148.08,6.75310642]
[1746608596973,8.99937638,148.12,148.08,6.75310642]
[1746608598472,8.99937638,148.11,148.08,6.75310642]
[1746608599468,5.0676973,148.1,148.08,6.75310642]
[1746608600268,14.06707368,148.1,148.08,6.75310642]
[1746608600965,5.0676973,148.09,148.08,6.75310642]
[1746608601749,5.0676973,148.09,148.08,15.7524828]
[1746608605779,5.0676973,148.09,148.07,8.99937638]
[1746608606589,5.0676973,148.08,148.07,8.99937638]
[1746608608889,5.0676973,148.08,148.07,15.75293888]
[1746608609855,8.99937638,148.12,148.07,32.63684514]
[1746608610582,8.99937638,148.12,148.08,8.99937638]
[1746608610881,148.36027638,148.13,148.08,8.99937638]
[1746608611477,137.7,148.13,148.09,15.75202679]
[1746608611683,137.7,148.13,148.1,8.99937638]
[1746608612677,15.86,148.16,148.11,6.75173857]
[1746608612878,8.99937638,148.15,148.11,15.75111495]
[1746608613086,8.99937638,148.14,148.11,6.75173857]
[1746608615082,15.86,148.16,148.11,6.75173857]
[1746608615273,8.99937638,148.14,148.11,6.75173857]
[1746608616688,139.2661,148.17,148.11,15.75111495]
[1746608616884,139.2661,148.17,148.12,8.99937638]
[1746608617182,8.99937638,148.16,148.12,8.99937638]
[1746608617380,8.99937638,148.15,148.13,6.75082697]
[1746608618482,8.99937638,148.14,148.12,6.75126104]
[1746608618780,8.99937638,148.14,148.11,6.75159456]
[1746608618981,8.99937638,148.12,148.08,26.0]
[1746608619184,8.99937638,148.12,148.08,34.99937638]
[1746608619386,8.99937638,148.11,148.06,18.51283248]
[1746608619588,8.99937638,148.11,148.06,42.88423248]
[1746608619896,8.99937638,148.11,148.07,8.99937638]
[1746608620794,8.99937638,148.11,148.07,15.75293888]
[1746608626494,8.99937638,148.12,148.07,15.75293888]
[1746608628898,6.75056396,148.14,148.07,15.75293888]
[1746608629083,8.99937638,148.12,148.07,15.75293888]
[1746608630698,144.44995157,148.15,148.09,8.99937638]
[1746608630880,8.99937638,148.14,148.1,8.99937638]
[1746608631201,8.99937638,148.14,148.09,8.99937638]
[1746608632683,8.99937638,148.13,148.09,8.99937638]
[1746608634109,137.7,148.15,148.1,6.75219446]
[1746608634312,137.7,148.15,148.12,8.99937638]
[1746608634511,137.7,148.15,148.11,8.99937638]
[1746608634687,146.69937638,148.15,148.11,8.99937638]
[1746608636320,146.69937638,148.15,148.12,6.75128274]
[1746608636795,8.99937638,148.14,148.12,6.75128274]
[1746608638510,8.99937638,148.14,148.11,6.75173857]
[1746608640715,8.99937638,148.13,148.1,23.63268061]
[1746608645022,8.99937638,148.11,148.1,6.75219446]
[1746608645402,8.99937638,148.11,148.08,6.75310642]
[1746608645601,137.7,148.15,148.08,32.63524887]
[1746608645911,8.99937638,148.14,148.1,8.99937638]
[1746608647021,137.7,148.15,148.11,6.75173857]
[1746608647229,8.99937638,148.14,148.11,6.75173857]
[1746608649329,8.99937638,148.14,148.1,6.75219446]
[1746608651629,8.99937638,148.14,148.1,15.75157084]
[1746608653636,137.7,148.15,148.1,15.75157084]
[1746608653826,8.99937638,148.14,148.1,15.75157084]
[1746608655736,146.69937638,148.15,148.1,15.75157084]
[1746608658237,146.69937638,148.15,148.11,8.99937638]
[1746608660226,8.99937638,148.15,148.12,6.75128274]
[1746608660644,1.5661,148.17,148.12,6.75128274]
[1746608660831,1.5803,148.2,148.13,18.64964886]